bitfinex/quotes_ETHUSD_20230903
["timestamp","ask_amount","ask_price","bid_price","bid_amount"]
[1693700000361,9.51669944,1638.2,1637.9,0.64092332]
[1693700000570,8.23745404,1638.2,1638.1,0.78367917]
[1693700001011,8.23745404,1638.2,1637.9,0.64092332]
[1693700001308,8.23745404,1638.2,1638.1,0.00543398]
[1693700002386,8.23745404,1638.2,1637.9,0.64092332]
[1693700002797,8.23745404,1638.2,1638.0,0.7838099]
[1693700003008,9.51669944,1638.2,1638.0,0.7838099]
[1693700003208,9.51669944,1638.2,1637.9,0.64092332]
[1693700003508,8.23745404,1638.2,1638.1,0.78911315]
[1693700004010,8.23745404,1638.2,1638.1,0.00543398]
[1693700004184,8.23745404,1638.2,1638.1,0.78911315]
[1693700004486,8.23745404,1638.2,1638.1,0.78367917]
[1693700004909,8.23745404,1638.2,1637.9,0.64092332]
[1693700005409,8.23745404,1638.2,1638.0,0.00544221]
[1693700005627,9.51669944,1638.2,1638.0,0.00544221]
[1693700012736,9.51669944,1638.2,1638.1,0.78358826]
[1693700013350,9.51669944,1638.2,1638.1,0.78902224]
[1693700017152,9.99995009,1638.2,1638.1,0.78902224]
[1693700030374,8.72070469,1638.2,1638.1,0.78902224]
[1693700030594,3.48325065,1638.2,1638.1,0.78902224]
[1693700030966,3.0,1638.2,1638.1,0.78902224]
[1693700094580,2.0362,1638.3,1638.1,1.42996272]
[1693700094787,3.49633501,1638.4,1638.1,1.42996272]
[1693700094963,3.49633501,1638.4,1638.1,2.39137344]
[1693700095695,3.49633501,1638.4,1638.1,1.42996272]
[1693700096481,3.49633501,1638.4,1638.1,1.79728816]
[1693700100207,0.49633501,1638.4,1638.1,1.79728816]
[1693700100420,5.0829,1638.5,1638.1,1.79728816]
[1693700100628,5.0829,1638.5,1638.1,3.94938816]
[1693700100915,5.57511598,1638.5,1638.1,3.94938816]
[1693700101222,5.57511598,1638.5,1638.2,0.39493882]
[1693700103414,5.57511598,1638.5,1638.1,2.79304048]
[1693700103570,5.57511598,1638.5,1638.3,0.78873003]
[1693700104019,5.57511598,1638.5,1638.1,2.79304048]
[1693700104393,5.57511598,1638.5,1638.4,0.00522683]
[1693700105415,5.57511598,1638.5,1638.1,2.79304048]
[1693700105617,5.57511598,1638.5,1638.1,3.2431956]
[1693700105823,5.57511598,1638.5,1638.2,0.78886073]
[1693700105992,5.57511598,1638.5,1638.1,3.2431956]
[1693700106426,5.57511598,1638.5,1638.2,0.79410402]
[1693700106782,5.57511598,1638.5,1638.2,0.00524329]
[1693700107533,5.57511598,1638.5,1638.1,3.2431956]
[1693700107823,5.57511598,1638.5,1638.2,0.78886073]
[1693700108323,5.57511598,1638.5,1638.1,3.2431956]
[1693700109021,5.57511598,1638.5,1638.2,0.78886073]
[1693700109323,5.57511598,1638.5,1638.1,3.2431956]
[1693700109725,5.57511598,1638.5,1638.3,0.78873003]
[1693700110024,6.58812758,1638.5,1638.1,2.79304048]
[1693700110196,5.57511598,1638.5,1638.1,2.79304048]
[1693700110391,5.57511598,1638.5,1638.4,0.7939028]
[1693700110797,5.57511598,1638.5,1638.4,0.00522683]
[1693700111431,5.57511598,1638.5,1638.1,2.79304048]
[1693700111598,2.1019,1638.4,1638.1,2.79304048]
[1693700111930,2.1019,1638.4,1638.1,3.2431956]
[1693700112425,2.1019,1638.4,1638.2,0.00524329]
[1693700113435,2.1019,1638.4,1638.1,3.2431956]
[1693700113785,2.1019,1638.4,1638.2,0.78886073]
[1693700114136,2.1019,1638.4,1638.1,3.2431956]
[1693700114526,2.1019,1638.4,1638.2,0.78886073]
[1693700114829,2.1019,1638.4,1638.1,3.2431956]
[1693700115202,2.1019,1638.4,1638.2,0.78886073]
[1693700115402,2.1019,1638.4,1638.2,0.79410402]
[1693700115603,2.1019,1638.4,1638.2,0.00524329]
[1693700116336,2.1019,1638.4,1638.1,3.2431956]
[1693700116633,2.1019,1638.4,1638.3,0.78873003]
[1693700116934,2.1019,1638.4,1638.1,2.79304048]
[1693700117089,2.1019,1638.4,1638.1,3.1684856]
[1693700117289,2.1019,1638.4,1638.2,0.79410402]
[1693700117732,2.1019,1638.4,1638.2,0.00524329]
[1693700118343,2.1019,1638.4,1638.1,3.1684856]
[1693700118650,2.1019,1638.4,1638.2,0.78886073]
[1693700119049,2.1019,1638.4,1638.1,3.1684856]
[1693700119343,2.1019,1638.4,1638.3,0.00523506]
[1693700120346,2.1019,1638.4,1638.1,2.79304048]
[1693700120541,2.1019,1638.4,1638.1,3.1684856]
[1693700120749,2.1019,1638.4,1638.2,0.78886073]
[1693700121161,2.1019,1638.4,1638.1,2.79304048]
[1693700121521,2.1019,1638.4,1638.2,0.78886073]
[1693700121946,2.1019,1638.4,1638.1,2.79304048]
[1693700122140,2.1019,1638.4,1638.1,3.1684856]
[1693700122570,2.1019,1638.4,1638.2,0.78886073]
[1693700122917,2.1019,1638.4,1638.1,2.79304048]
[1693700123413,2.1019,1638.4,1638.3,0.78873003]
[1693700123963,2.1019,1638.4,1638.2,0.00524329]
[1693700124365,2.1019,1638.4,1638.1,2.79304048]
[1693700124864,2.1019,1638.4,1638.3,0.78873003]
[1693700125561,2.1019,1638.4,1638.1,2.79304048]
[1693700125766,2.1019,1638.4,1638.1,3.1684856]
[1693700126068,2.1019,1638.4,1638.2,0.78886073]
[1693700126423,2.1019,1638.4,1638.1,2.79304048]
[1693700126925,2.1019,1638.4,1638.3,0.78873003]
[1693700127467,2.1019,1638.4,1638.1,2.79304048]
[1693700127668,2.1019,1638.4,1638.1,3.1684856]
[1693700127855,2.1019,1638.4,1638.2,0.78886073]
[1693700128224,2.1019,1638.4,1638.1,2.79304048]
[1693700128452,2.1019,1638.4,1638.3,0.78873003]
[1693700128853,2.1019,1638.4,1638.1,2.79304048]
[1693700129077,2.1019,1638.4,1638.1,3.1684856]
[1693700129289,2.1019,1638.4,1638.2,0.78886073]
[1693700129609,2.1019,1638.4,1638.2,0.00524329]
[1693700130385,2.1019,1638.4,1638.1,2.79304048]
[1693700130986,2.1019,1638.4,1638.2,0.78886073]
[1693700131288,2.1019,1638.4,1638.1,2.79304048]
[1693700131688,2.1019,1638.4,1638.3,0.78873003]
[1693700131985,2.6613116,1638.4,1638.1,2.79304048]
[1693700132291,2.1019,1638.4,1638.3,0.78873003]
[1693700132649,2.1019,1638.4,1638.2,0.00524329]
[1693700133401,2.1019,1638.4,1638.1,2.79304048]
[1693700133856,2.1019,1638.4,1638.3,0.87122201]
[1693700134056,2.1019,1638.4,1638.1,2.79304048]
[1693700134258,2.1019,1638.4,1638.1,3.2966737]
[1693700134576,2.1019,1638.4,1638.3,0.00575146]
[1693700135473,2.1019,1638.4,1638.1,2.79304048]
[1693700135848,2.1019,1638.4,1638.2,0.87135743]
[1693700136176,2.1019,1638.4,1638.1,2.79304048]
[1693700136588,2.1019,1638.4,1638.2,0.87135743]
[1693700136987,2.1019,1638.4,1638.1,3.7544512]
[1693700137225,2.1019,1638.4,1638.1,4.25808442]
[1693700137431,2.1019,1638.4,1638.2,0.00575972]
[1693700137583,2.1019,1638.4,1638.2,0.87711715]
[1693700137931,2.1019,1638.4,1638.2,0.00575972]
[1693700138638,2.1019,1638.4,1638.2,0.64094048]
[1693700138931,2.1019,1638.4,1638.1,3.7544512]
[1693700139339,2.1019,1638.4,1638.2,0.87711715]
[1693700139629,2.1019,1638.4,1638.2,1.51805763]
[1693700139792,2.1019,1638.4,1638.2,0.6467002]
[1693700140342,2.1019,1638.4,1638.2,0.64094048]
[1693700215484,2.1019,1638.4,1638.2,1.6023512]
[1693700222025,5.1019,1638.4,1638.2,1.6023512]
[1693700242734,5.1019,1638.4,1638.2,0.64094048]
[1693700295825,5.1019,1638.4,1638.2,0.64120639]
[1693700315225,5.58966971,1638.4,1638.2,0.64120639]
[1693700321759,5.1019,1638.4,1638.2,0.64120639]
[1693700340934,3.0,1638.4,1638.2,0.64120639]
[1693700341103,4.555,1638.5,1638.2,0.64120639]
[1693700341431,5.41200783,1638.5,1638.2,0.64120639]
[1693700341635,7.59450783,1638.5,1638.2,0.64120639]
[1693700367572,5.41200783,1638.5,1638.2,0.64120639]
[1693700368052,7.62710783,1638.5,1638.2,0.64120639]
[1693700369203,6.7701,1638.5,1638.2,0.64120639]
[1693700384658,6.2701,1638.5,1638.2,0.64120639]
[1693700399563,6.1201,1638.5,1638.2,0.64120639]
[1693700427031,3.905,1638.5,1638.2,0.64120639]
[1693700428029,5.928,1638.5,1638.2,0.64120639]
[1693700433839,3.905,1638.5,1638.2,0.64120639]
[1693700434202,5.9273,1638.5,1638.2,0.64120639]
[1693700462005,5.9273,1638.5,1638.1,2.93809896]
[1693700462303,5.9273,1638.5,1638.3,0.80868044]
[1693700462693,5.9273,1638.5,1638.2,0.6474405]
[1693700463609,5.9273,1638.5,1638.2,0.6409993]
[1693700471903,2.0846539,1638.4,1638.1,1.60249826]
[1693700472103,7.1940539,1638.4,1638.2,0.6409993]
[1693700472307,7.63685404,1638.3,1638.1,0.6409993]
[1693700472619,3.0,1638.1,1637.9,1.60249826]
[1693700472813,3.0,1638.1,1637.7,1.60249826]
[1693700472814,3.08185404,1638.0,1637.7,1.60249826]
[1693700473142,1.555,1637.8,1637.6,3.52549618]
[1693700473445,1.555,1637.8,1637.6,1.60249826]
[1693700473627,1.555,1637.8,1637.7,0.00550508]
[1693700474406,1.555,1637.8,1637.6,0.6409993]
[1693700475533,1.555,1637.8,1637.7,0.00550508]
[1693700476307,3.5584,1637.8,1637.7,0.00550508]
[1693700476550,3.5584,1637.8,1637.5,0.6409993]
[1693700476757,1.555,1637.7,1637.5,0.6409993]
[1693700477506,1.555,1637.7,1637.6,0.00551334]
[1693700477708,1.555,1637.7,1637.6,0.81508355]
[1693700479811,1.555,1637.7,1637.6,1.45608285]
[1693700480964,1.91084,1637.7,1637.6,0.81508355]
[1693700483845,1.91084,1637.7,1637.6,1.45608285]
[1693700484213,7.99269404,1637.7,1637.6,0.81508355]
[1693700484461,11.47269404,1637.7,1637.6,0.80957021]
[1693700484818,4.555,1637.5,1637.4,0.00252255]
[1693700485217,8.3105,1637.5,1637.4,0.00252255]
[1693700485418,10.3378,1637.5,1637.4,0.00252255]
[1693700485935,13.41965404,1637.5,1637.4,0.00252255]
[1693700486249,13.89965404,1637.5,1637.4,0.00252255]
[1693700488992,13.89965404,1637.5,1637.4,0.64352185]
[1693700490935,15.45465404,1637.5,1637.4,0.00252255]
[1693700493855,15.45465404,1637.5,1637.4,0.64352185]
[1693700494058,15.45465404,1637.5,1637.4,0.6409993]
[1693700494257,13.42735404,1637.5,1637.4,0.6409993]
[1693700496671,13.42735404,1637.5,1637.4,1.60249826]
[1693700496883,13.42735404,1637.5,1637.4,1.59823917]
[1693700497695,13.42735404,1637.5,1637.4,0.96149896]
[1693700498757,13.95700794,1637.5,1637.4,0.96149896]
[1693700506320,14.45156796,1637.5,1637.4,0.96149896]
[1693700507510,12.89656796,1637.5,1637.4,0.96149896]
[1693700507906,12.89656796,1637.5,1637.4,2.24349757]
[1693700508512,12.89656796,1637.5,1637.1,4.78659792]
[1693700508513,3.0,1637.3,1637.1,2.8636]
[1693700508685,3.0,1637.3,1637.1,4.02660259]
[1693700508686,6.08185404,1637.2,1637.1,4.02660259]
[1693700508883,3.25210241,1637.2,1637.1,1.91050259]
[1693700509207,3.25210241,1637.2,1637.1,2.72656489]
[1693700509510,3.08185404,1637.2,1637.1,2.73183401]
[1693700511015,6.08185404,1637.2,1637.1,2.73183401]
[1693700511906,6.08185404,1637.2,1637.1,0.82133142]
[1693700513917,6.08185404,1637.2,1637.1,3.05025111]
[1693700516885,6.08185404,1637.2,1637.1,0.82133142]
[1693700517739,7.14553944,1637.2,1637.1,0.82133142]
[1693700517902,7.14553944,1637.2,1636.8,1.91974034]
[1693700517903,3.0,1636.9,1636.8,1.91974034]
[1693700518102,9.56185404,1636.9,1636.8,1.91980614]
[1693700518549,9.56185404,1636.9,1636.8,1.91728267]
[1693700518899,9.56185404,1636.9,1636.8,1.91728088]
[1693700519113,10.67353944,1636.9,1636.8,1.91728088]
[1693700520654,7.67353944,1636.9,1636.8,1.91728088]
[1693700520811,10.67353944,1636.9,1636.8,1.91728088]
[1693700522138,10.67353944,1636.9,1636.7,1.91728088]
[1693700522339,3.56185404,1636.8,1636.7,1.91728088]
[1693700522847,3.56185404,1636.8,1636.7,2.6690935]
[1693700523439,3.56185404,1636.8,1636.7,0.75181262]
[1693700523641,3.56185404,1636.8,1636.7,0.75650251]
[1693700523846,3.56185404,1636.8,1636.7,2.67325426]
[1693700525163,3.08185404,1636.8,1636.7,0.75650251]
[1693700525845,3.08185404,1636.8,1636.7,0.00468989]
[1693700528372,4.63685404,1636.8,1636.7,0.00468989]
[1693700528735,4.63685404,1636.8,1636.7,1.92175531]
[1693700530482,4.63685404,1636.8,1636.7,2.67356793]
[1693700530685,4.63685404,1636.8,1636.7,0.75650251]
[1693700531596,4.63685404,1636.8,1636.7,2.67356793]
[1693700531890,4.63685404,1636.8,1636.7,2.3544367]
[1693700536590,4.63685404,1636.8,1636.7,2.03474938]
[1693700538778,4.63685404,1636.8,1636.7,2.99331159]
[1693700538988,4.63685404,1636.8,1636.7,1.71506472]
[1693700539748,4.63685404,1636.8,1636.7,2.99331159]
[1693700540081,4.63685404,1636.8,1636.7,1.71506472]
[1693700540794,4.63685404,1636.8,1636.7,2.35404909]
[1693700541719,4.63685404,1636.8,1636.7,1.39548688]
[1693700542905,8.11685404,1636.8,1636.7,1.39548688]
[1693700543081,9.52853944,1636.8,1636.7,1.39548688]
[1693700543281,9.52853944,1636.8,1636.7,0.64367426]
[1693700543514,9.52853944,1636.8,1636.7,0.63898437]
[1693700544021,9.52853944,1636.8,1636.6,0.63898437]
[1693700544180,3.0,1636.7,1636.6,0.63898437]
[1693700544673,8.11685404,1636.7,1636.6,0.75194897]
[1693700544881,9.11770798,1636.7,1636.6,0.75194897]
[1693700547431,9.11770798,1636.7,1636.6,2.34988316]
[1693700547594,9.11770798,1636.7,1636.6,2.35458133]
[1693700548721,9.11770798,1636.7,1636.6,0.75664714]
[1693700556617,9.11770798,1636.7,1636.6,1.39570761]
[1693700561855,9.11770798,1636.7,1636.6,2.35429831]
[1693700562712,9.11770798,1636.7,1636.6,1.71523784]
[1693700566802,8.11685404,1636.7,1636.6,1.71523784]
[1693700569009,8.11685404,1636.7,1636.6,2.35587915]
[1693700569699,8.11685404,1636.7,1636.6,1.39728845]
[1693700571732,8.11685404,1636.7,1636.6,0.75664714]
[1693700591971,11.11685404,1636.7,1636.6,0.75664714]
[1693700592177,13.07224944,1636.7,1636.6,0.75664714]
[1693700592374,13.07224944,1636.7,1636.6,0.00469817]
[1693700592679,13.07224944,1636.7,1636.5,0.1]
[1693700592976,9.98385404,1636.6,1636.5,0.1]
[1693700593559,9.98385404,1636.6,1636.5,0.10470645]
[1693700593765,8.71274898,1636.6,1636.5,0.8584693]
[1693700594082,10.26774898,1636.6,1636.5,0.8584693]
[1693700594780,10.26774898,1636.6,1636.5,0.10470645]
[1693700595599,10.26774898,1636.6,1636.5,0.1]
[1693700629353,6.08185404,1636.6,1636.5,0.1]
[1693700630862,6.56185404,1636.6,1636.5,0.1]
[1693700636494,6.08185404,1636.6,1636.5,0.1]
[1693700636696,3.0,1636.6,1636.5,0.1]
[1693700636873,0.50056258,1636.7,1636.5,0.1]
[1693700637072,3.0,1636.8,1636.5,0.1]
[1693700637396,3.08185404,1636.8,1636.6,0.71963139]
[1693700637592,3.08185404,1636.8,1636.6,0.72432956]
[1693700638461,3.0,1636.7,1636.6,0.72432956]
[1693700645813,3.0,1636.7,1636.6,0.00469817]
[1693700646601,3.0,1636.7,1636.5,0.1]
[1693700657824,3.49336642,1636.7,1636.5,0.1]
[1693700660711,5.54206642,1636.7,1636.5,0.1]
[1693700670449,0.49336642,1636.7,1636.5,0.1]
[1693700670650,2.062,1636.8,1636.5,0.74064131]
[1693700670958,30.57,1637.0,1636.5,1.69923201]
[1693700671117,5.14385404,1636.9,1636.6,0.71963139]
[1693700671620,5.14385404,1636.9,1636.7,0.00468989]
[1693700672649,5.14385404,1636.9,1636.5,0.74064131]
[1693700673236,5.14385404,1636.9,1636.6,0.71963139]
[1693700675653,5.14385404,1636.9,1636.7,0.00468989]
[1693700687637,5.14385404,1636.9,1636.8,0.72107234]
[1693700687837,3.08185404,1636.9,1636.8,0.72107234]
[1693700688578,3.08185404,1636.9,1636.8,0.72575396]
[1693700698675,4.63685404,1636.9,1636.8,0.72575396]
[1693700699472,5.36365413,1636.9,1636.8,0.72575396]
[1693700712409,4.63685404,1636.9,1636.8,0.72575396]
[1693700746522,4.63685404,1636.9,1636.8,0.72451372]
[1693700750631,4.63685404,1636.9,1636.8,0.72107234]
[1693700750864,4.63685404,1636.9,1636.6,3.69563485]
[1693700751048,6.67145404,1636.9,1636.6,3.69563485]
[1693700751267,6.67145404,1636.9,1636.7,0.7230814]
[1693700773711,6.67145404,1636.9,1636.7,1.36409534]
[1693700775575,6.67145404,1636.9,1636.7,0.7230814]
[1693700783943,6.67145404,1636.9,1636.7,1.36409534]
[1693700784982,6.67145404,1636.9,1636.7,0.7230814]
[1693700788240,6.67145404,1636.9,1636.7,1.36409534]
[1693700792546,6.67145404,1636.9,1636.8,0.00366513]
[1693700792991,6.67145404,1636.9,1636.8,0.72670916]
[1693700804789,5.11645404,1636.9,1636.8,0.72670916]
[1693700818744,5.11645404,1636.9,1636.8,0.72304403]
[1693700823577,5.59645404,1636.9,1636.8,0.72304403]
[1693700841928,7.15145404,1636.9,1636.8,0.72304403]
[1693700842734,7.15145404,1636.9,1636.8,0.00366513]
[1693700843088,7.15145404,1636.9,1636.8,0.72670916]
[1693700978642,7.15145404,1636.9,1636.8,0.72304403]
[1693701014511,7.15145404,1636.9,1636.7,0.64171586]
[1693701014973,7.15145404,1636.9,1636.8,0.72952769]
[1693701015477,7.15145404,1636.9,1636.7,0.64171586]
[1693701015648,7.15145404,1636.9,1636.8,0.72952769]
[1693701015969,7.15145404,1636.9,1636.7,0.64171586]
[1693701016474,7.15145404,1636.9,1636.8,0.72952769]
[1693701016781,7.15145404,1636.9,1636.7,0.64171586]
[1693701017079,7.15145404,1636.9,1636.8,0.72952769]
[1693701017378,7.15145404,1636.9,1636.7,0.64171586]
[1693701017777,7.15145404,1636.9,1636.8,0.72952769]
[1693701018072,7.15145404,1636.9,1636.7,0.64171586]
[1693701018455,7.15145404,1636.9,1636.8,0.72952769]
[1693701018777,7.15145404,1636.9,1636.7,0.64171586]
[1693701019179,7.15145404,1636.9,1636.8,0.72952769]
[1693701019482,7.15145404,1636.9,1636.7,0.64171586]
[1693701019881,7.15145404,1636.9,1636.8,0.72952769]
[1693701020183,7.15145404,1636.9,1636.7,0.64171586]
[1693701020681,7.15145404,1636.9,1636.8,0.72952769]
[1693701020882,7.15145404,1636.9,1636.7,0.64171586]
[1693701021278,7.15145404,1636.9,1636.8,0.72952769]
[1693701021581,7.15145404,1636.9,1636.7,0.64171586]
[1693701021984,7.15145404,1636.9,1636.8,0.72952769]
[1693701022281,7.15145404,1636.9,1636.7,0.64171586]
[1693701022687,7.15145404,1636.9,1636.8,0.72952769]
[1693701022983,7.15145404,1636.9,1636.7,0.64171586]
[1693701023382,7.15145404,1636.9,1636.8,0.72952769]
[1693701023685,7.15145404,1636.9,1636.7,0.64171586]
[1693701024062,7.15145404,1636.9,1636.8,0.72952769]
[1693701024387,7.15145404,1636.9,1636.7,0.64171586]
[1693701024788,7.15145404,1636.9,1636.8,0.72952769]
[1693701025083,7.15145404,1636.9,1636.7,0.64171586]
[1693701025481,7.15145404,1636.9,1636.8,0.72952769]
[1693701025881,7.15145404,1636.9,1636.7,0.64171586]
[1693701026276,7.15145404,1636.9,1636.8,0.72952769]
[1693701026573,7.15145404,1636.9,1636.7,0.64171586]
[1693701026948,7.15145404,1636.9,1636.8,0.72952769]
[1693701027167,7.15145404,1636.9,1636.7,0.64171586]
[1693701027592,7.15145404,1636.9,1636.8,0.72952769]
[1693701028008,7.15145404,1636.9,1636.7,0.64171586]
[1693701028481,7.15145404,1636.9,1636.8,0.72952769]
[1693701029006,7.15145404,1636.9,1636.7,0.64171586]
[1693701029372,7.15145404,1636.9,1636.8,0.72952769]
[1693701029906,7.15145404,1636.9,1636.7,0.64171586]
[1693701030494,7.15145404,1636.9,1636.8,0.72952769]
[1693701030808,7.15145404,1636.9,1636.7,0.64171586]
[1693701031111,7.15145404,1636.9,1636.8,0.72952769]
[1693701031268,7.91602413,1636.9,1636.8,0.72952769]
[1693701031469,7.91602413,1636.9,1636.7,0.64171586]
[1693701031801,7.15145404,1636.9,1636.8,0.72952769]
[1693701032170,7.15145404,1636.9,1636.7,0.64171586]
[1693701032592,7.15145404,1636.9,1636.8,0.72952769]
[1693701032770,7.15145404,1636.9,1636.7,0.64171586]
[1693701033211,7.15145404,1636.9,1636.8,0.72952769]
[1693701033399,7.91602413,1636.9,1636.8,0.72952769]
[1693701033602,7.91602413,1636.9,1636.7,0.64171586]
[1693701033915,7.15145404,1636.9,1636.8,0.72952769]
[1693701034207,7.15145404,1636.9,1636.7,0.64171586]
[1693701034602,7.15145404,1636.9,1636.8,0.72952769]
[1693701034910,7.15145404,1636.9,1636.7,0.64171586]
[1693701035313,7.15145404,1636.9,1636.8,0.72952769]
[1693701035634,7.15145404,1636.9,1636.7,0.64171586]
[1693701036104,7.15145404,1636.9,1636.8,0.72952769]
[1693701036414,7.15145404,1636.9,1636.7,0.64171586]
[1693701036719,7.15145404,1636.9,1636.8,0.72952769]
[1693701037014,7.15145404,1636.9,1636.7,0.64171586]
[1693701037415,7.15145404,1636.9,1636.8,0.72952769]
[1693701037728,7.15145404,1636.9,1636.7,0.64171586]
[1693701038215,7.15145404,1636.9,1636.8,0.72952769]
[1693701038390,7.15145404,1636.9,1636.7,0.64171586]
[1693701038816,7.15145404,1636.9,1636.8,0.72952769]
[1693701039149,7.15145404,1636.9,1636.7,0.64171586]
[1693701039520,7.15145404,1636.9,1636.8,0.72952769]
[1693701039715,7.91602413,1636.9,1636.8,0.72952769]
[1693701039894,7.91602413,1636.9,1636.7,0.64171586]
[1693701040222,7.15145404,1636.9,1636.8,0.7320686]
[1693701040516,7.15145404,1636.9,1636.7,0.64171586]
[1693701040914,7.15145404,1636.9,1636.8,0.7320686]
[1693701041420,7.15145404,1636.9,1636.7,0.64171586]
[1693701044542,3.48,1636.8,1636.6,0.64171586]
[1693701044742,3.48,1636.8,1636.5,0.74171586]
[1693701044743,7.98485404,1636.7,1636.5,0.74171586]
[1693701044949,7.98485404,1636.7,1636.5,0.1]
[1693701044950,2.035,1636.6,1636.5,0.1]
[1693701045128,11.27979403,1636.6,1636.5,0.1]
[1693701045295,14.27979403,1636.6,1636.5,0.1]
[1693701045510,16.26021343,1636.6,1636.5,0.1]
[1693701058833,16.78960215,1636.6,1636.5,0.1]
[1693701059083,16.79031876,1636.6,1636.5,0.1]
[1693701063083,16.79031905,1636.6,1636.5,0.1]
[1693701068378,23.21231905,1636.6,1636.5,0.1]
[1693701083702,23.21244787,1636.6,1636.5,0.1]
[1693701085085,9.0,1635.7,1635.6,2.88100347]
[1693701085608,3.0,1635.3,1635.1,1.92063659]
[1693701085623,9.64794749,1635.2,1635.0,3.20127652]
[1693701085906,9.64794749,1635.2,1634.8,2.66184635]
[1693701085907,6.16794749,1635.1,1634.8,2.66184635]
[1693701086031,6.48,1635.0,1634.5,0.96053383]
[1693701086319,1.555,1634.8,1634.4,1.28105001]
[1693701086481,1.555,1634.8,1634.3,1.18105001]
[1693701087414,0.48,1634.7,1634.3,1.18105001]
[1693701087708,0.48,1634.7,1634.3,0.68105001]
[1693701089780,0.48,1634.7,1634.2,3.68521252]
[1693701089976,0.48,1634.7,1634.3,0.36852125]
[1693701090611,2.035,1634.7,1634.2,2.0839]
[1693701090798,1.555,1634.6,1634.2,2.0839]
[1693701090981,4.555,1634.6,1634.2,2.0839]
[1693701092213,3.0,1634.2,1634.0,1.60131252]
[1693701092521,3.0,1634.2,1633.8,2.2206]
[1693701092522,1.555,1634.2,1633.8,2.2206]
[1693701092710,6.0,1634.6,1633.8,2.2206]
[1693701092889,0.48,1634.5,1633.8,2.2206]
[1693701093912,0.48,1634.5,1633.9,0.6366167]
[1693701095217,2.035,1634.5,1633.9,0.6366167]
[1693701095389,5.035,1634.5,1633.9,0.6366167]
[1693701097221,3.08185404,1634.4,1633.9,0.6366167]
[1693701097417,1.555,1634.2,1633.9,0.6366167]
[1693701098318,4.63685404,1634.2,1633.9,0.6366167]
[1693701098626,3.08185404,1634.2,1633.9,0.6366167]
[1693701111147,4.4057854,1634.4,1633.9,0.6366167]
[1693701111308,3.08185404,1634.4,1633.9,0.6366167]
[1693701122026,4.63685404,1634.4,1633.9,0.6366167]
[1693701127555,4.63685404,1634.4,1633.9,2.8498875]
[1693701128731,4.63685404,1634.4,1634.0,2.2132708]
[1693701129145,4.63685404,1634.4,1634.1,0.63114208]
[1693701129469,0.4636854,1634.3,1634.1,0.63114208]
[1693701129670,0.4636854,1634.3,1634.2,0.94854463]
[1693701130561,0.4636854,1634.3,1634.1,2.52823134]
[1693701133378,0.4636854,1634.3,1634.2,1.89708926]
[1693701133877,6.63414571,1634.3,1634.2,1.89708926]
[1693701137583,6.63414571,1634.3,1634.1,2.84441289]
[1693701137793,6.17046031,1634.2,1634.1,2.84441289]
[1693701140188,0.4636854,1634.3,1634.1,2.84441289]
[1693701142794,0.4636854,1634.3,1634.2,1.9269831]
[1693701143178,0.4636854,1634.3,1634.2,2.5583422]
[1693701143503,0.4636854,1634.3,1634.2,1.9160097]
[1693701144570,0.4636854,1634.3,1634.2,0.6313591]
[1693701144917,0.4636854,1634.3,1634.1,0.96349473]
[1693701150403,1.555,1634.2,1634.0,5.24814533]
[1693701150979,4.1795854,1634.3,1634.0,5.24814533]
[1693701151307,4.1795854,1634.3,1634.1,0.96349473]
[1693701153614,9.422,1634.0,1633.8,0.96389377]
[1693701153774,9.422,1634.0,1633.7,1.62332323]
[1693701153775,9.422,1633.8,1633.7,0.0168336]
[1693701153973,24.10190986,1633.8,1633.1,1.60648963]
[1693701154302,4.63685404,1633.2,1632.7,1.60648963]
[1693701154499,3.0,1633.4,1632.8,2.1639]
[1693701154680,3.0,1633.6,1632.8,2.1639]
[1693701154681,1.555,1633.0,1632.8,2.1639]
[1693701154889,1.555,1633.0,1632.8,1.4139]
[1693701155390,3.08185404,1633.3,1632.6,0.1]
[1693701155391,4.63685404,1632.9,1632.6,0.1]
[1693701155585,3.08185404,1632.9,1632.6,0.1]
[1693701155787,0.3081854,1632.8,1632.6,0.1]
[1693701155998,1.8631854,1632.8,1632.6,0.1]
[1693701156417,1.555,1632.9,1632.7,0.53097104]
[1693701159713,3.6912,1633.2,1632.7,0.53097104]
[1693701159900,6.77305404,1633.2,1632.7,0.53097104]
[1693701160996,1.555,1633.1,1632.7,0.53097104]
[1693701161234,1.555,1633.1,1632.7,3.53097104]
[1693701161604,1.555,1633.1,1632.7,4.80718974]
[1693701162229,1.555,1633.1,1632.7,1.80718974]
[1693701162729,1.555,1633.1,1632.8,0.95675627]
[1693701165800,3.6912,1633.2,1632.8,0.95675627]
[1693701166000,1.555,1633.2,1632.8,0.95675627]
[1693701166494,1.555,1633.3,1632.8,2.23297497]
[1693701166699,1.555,1633.3,1632.9,0.95675627]
[1693701167102,1.555,1633.4,1632.9,0.95675627]
[1693701167302,4.63685404,1633.4,1632.9,1.33977466]
[1693701168600,4.63685404,1633.4,1632.9,2.61599336]
[1693701169133,4.63685404,1633.4,1632.9,1.33977466]
[1693701169698,1.555,1633.4,1632.9,2.56599336]
[1693701169910,4.555,1633.5,1632.9,2.56599336]
[1693701170201,8.60088404,1633.5,1632.9,2.56599336]
[1693701171240,8.60088404,1633.5,1632.9,1.28977466]
[1693701171410,8.60088404,1633.5,1633.0,2.5632]
[1693701171608,8.60088404,1633.5,1633.0,3.10457745]
[1693701172206,3.0,1633.5,1633.0,3.10457745]
[1693701172426,5.0853,1633.6,1633.0,3.10457745]
[1693701172626,8.16715404,1633.6,1633.0,3.10457745]
[1693701174440,2.035,1633.8,1633.0,5.93579615]
[1693701174619,3.56185404,1633.7,1633.0,5.93579615]
[1693701174937,3.6801,1633.8,1633.1,0.59357962]
[1693701175143,5.20695404,1633.8,1633.1,8.57057962]
[1693701178102,5.20695404,1633.8,1633.1,9.84679832]
[1693701178638,5.20695404,1633.8,1633.1,10.80208703]
[1693701179346,5.20695404,1633.8,1633.2,0.95528871]
[1693701179546,6.48314944,1633.8,1633.2,2.03549741]
[1693701179855,3.4012954,1633.8,1633.2,10.01249741]
[1693701180145,2.1251,1633.8,1633.2,11.28871611]
[1693701182511,2.1251,1633.8,1633.3,0.95528871]
[1693701184362,1.2531844,1634.2,1633.6,1.555]
[1693701184649,3.0,1634.7,1633.7,1.555]
[1693701184835,3.0,1634.7,1633.7,3.9675]
[1693701185036,1.555,1634.5,1633.7,3.9675]
[1693701185242,1.555,1634.4,1633.7,2.4125]
[1693701185435,3.08185404,1634.3,1633.7,3.9675]
[1693701185842,5.23755404,1634.3,1633.7,3.9675]